fUSD/lending_fUSD_20240813
["ID","MTS","AMOUNT","RATE_DAILY","PERIOD"]
[334754618,1723535514200,-167.0,0.00018444,2]
[334754619,1723535514209,-500.0,0.00018452,2]
[334754620,1723535514219,-500.0,0.00018457,2]
[334754621,1723535514228,-1863.44,0.00018457,2]
[334754622,1723535514238,-500.0,0.00018457,2]
[334754623,1723535514247,-1155.62,0.00018457,2]
[334754624,1723535514261,-714.2,0.00018457,2]
[334754625,1723535514270,-1241.0,0.00018457,2]
[334754626,1723535514281,-755.25,0.00018457,2]
[334754627,1723535514290,-791.16,0.00018457,2]
[334754628,1723535514300,-946.68,0.00018457,2]
[334754629,1723535514309,-1359.34,0.00018457,2]
[334754630,1723535514319,-1743.71,0.00018457,2]
[334754631,1723535514328,-1023.06,0.00018457,2]
[334754632,1723535514338,-285.07069641,0.00018457,2]
[334754633,1723535514347,-778.62,0.00018457,2]
[334754634,1723535514358,-1760.09,0.00018457,2]
[334754635,1723535514367,-1230.55,0.00018457,2]
[334754636,1723535514377,-537.47,0.00018457,2]
[334754637,1723535514388,-1688.57,0.00018457,2]
[334754638,1723535514397,-1001.08,0.00018457,2]
[334754639,1723535514407,-6177.95,0.00018457,2]
[334754640,1723535514416,-223.69352179,0.00018457,2]
[334754641,1723535514425,-500.0,0.00018457,2]
[334754642,1723535514435,-2922.39,0.00018457,2]
[334754643,1723535514445,-1300.36,0.00018457,2]
[334754644,1723535514454,-500.0,0.00018457,2]
[334754645,1723535514463,-500.0,0.00018457,2]
[334754646,1723535514473,-609.65,0.00018457,2]
[334754647,1723535514482,-523.35,0.00018457,2]
[334754648,1723535514492,-1411.68,0.00018457,2]
[334754649,1723535514501,-500.0,0.00018457,2]
[334754650,1723535514510,-500.0,0.00018457,2]
[334754651,1723535514520,-518.03,0.00018457,2]
[334754652,1723535514530,-1209.11,0.00018457,2]
[334754653,1723535514541,-1085.25,0.00018457,2]
[334754654,1723535514556,-991.7,0.00018457,2]
[334754655,1723535514567,-507.82,0.00018457,2]
[334754656,1723535514576,-500.0,0.00018457,2]
[334754657,1723535514588,-686.92,0.00018457,2]
[334754658,1723535514598,-2622.01,0.00018457,2]
[334754659,1723535514610,-551.73,0.00018457,2]
[334754660,1723535514623,-1670.97,0.00018457,2]
[334754661,1723535514635,-670.23,0.00018457,2]
[334754662,1723535514645,-424.43145687,0.00018457,2]
[334754663,1723535514655,-3541.36,0.00018457,2]
[334754664,1723535514665,-500.0,0.00018457,2]
[334754665,1723535514675,-500.0,0.00018457,2]
[334754666,1723535514684,-566.63267127,0.00018457,2]
[334754667,1723535514694,-1085.98,0.00018457,2]
[334754668,1723535514705,-2167.9,0.00018457,2]
[334754669,1723535514715,-500.0,0.00018457,2]
[334754670,1723535514726,-2066.64,0.00018457,2]
[334754671,1723535514736,-1180.27,0.00018457,2]
[334754672,1723535514746,-913.4,0.00018457,2]
[334754673,1723535514757,-500.0,0.00018457,2]
[334754674,1723535514767,-1756.06,0.00018457,2]
[334754675,1723535514777,-500.0,0.00018457,2]
[334754676,1723535514786,-610.16,0.00018457,2]
[334754677,1723535514795,-4710.01,0.00018457,2]
[334754678,1723535514804,-1586.08,0.00018457,2]
[334754679,1723535514813,-224.34289915,0.00018457,2]
[334754680,1723535514823,-842.93,0.00018457,2]
[334754681,1723535514832,-500.84,0.00018457,2]
[334754682,1723535514841,-500.0,0.00018457,2]
[334754683,1723535514850,-934.19,0.00018457,2]
[334754684,1723535514860,-4812.55,0.00018457,2]
[334754685,1723535514869,-605.96,0.00018457,2]
[334754686,1723535514879,-755.9,0.00018457,2]
[334754687,1723535514891,-1219.63,0.00018457,2]
[334754688,1723535514900,-500.0,0.00018457,2]
[334754689,1723535514910,-889.59,0.00018457,2]
[334754690,1723535514919,-2146.37,0.00018457,2]
[334754691,1723535514928,-521.65,0.00018457,2]
[334754692,1723535514938,-2584.53,0.00018457,2]
[334754693,1723535514947,-500.0,0.00018457,2]
[334754694,1723535514956,-690.9,0.00018457,2]
[334754695,1723535514966,-645.82,0.00018457,2]
[334754696,1723535514975,-4824.32,0.00018457,2]
[334754697,1723535514985,-245.14883887,0.00018457,2]
[334754698,1723535514995,-2092.45,0.00018457,2]
[334754699,1723535515005,-500.0,0.00018457,2]
[334754700,1723535515015,-1427.21,0.00018457,2]
[334754701,1723535515024,-537.28220234,0.00018457,2]
[334754702,1723535515035,-376.83316712,0.00018457,2]
[334754703,1723535515047,-2925.2,0.00018457,2]
[334754704,1723535515057,-150.0,0.0001846,2]
[334754705,1723535515066,-7000.0,0.00018463,7]
[334754706,1723535515075,-224.38282423,0.00018476,2]
[334754707,1723535515085,-4173.1045496,0.000185,2]
[334754708,1723535515095,-152.0,0.00018523,3]
[334754709,1723535515104,-150.0,0.00018589,2]
[334754710,1723535515303,-201.0,0.000186,2]
[334754711,1723535515313,-304.3,0.000186,2]
[334754712,1723535515324,-224.38282423,0.00018603,2]
[334754713,1723535515335,-771.68,0.00018629,2]
[334754714,1723535515346,-1412.75,0.00018659,2]
[334754715,1723535515356,-508.59,0.0001866,2]
[334754716,1723535515366,-500.0,0.0001866,2]
[334754717,1723535515376,-500.0,0.0001866,2]
[334754718,1723535515387,-500.0,0.0001866,2]
[334754719,1723535515398,-6591.73,0.0001866,2]
[334754720,1723535515408,-500.0,0.0001866,2]
[334754721,1723535515420,-1037.55,0.0001866,2]
[334754722,1723535515431,-981.15,0.0001866,2]
[334754723,1723535515441,-553.64,0.0001866,2]
[334754724,1723535515452,-500.0,0.0001866,2]
[334754725,1723535515463,-347.28,0.0001866,2]
[334754726,1723535515474,-505.73,0.0001866,2]
[334754727,1723535515485,-888.8,0.0001866,2]
[334754728,1723535515495,-4003.23,0.0001866,2]
[334754729,1723535515505,-314.59466889,0.0001866,2]
[334754730,1723535515515,-773.78,0.0001866,2]
[334754731,1723535515526,-560.08,0.0001866,2]
[334754732,1723535515549,-500.0,0.0001866,2]
[334754733,1723535515561,-1646.38,0.0001866,2]
[334754734,1723535515571,-1106.51,0.0001866,2]
[334754735,1723535515581,-1145.83,0.0001866,2]
[334754736,1723535515592,-1271.02,0.0001866,2]
[334754737,1723535515602,-756.19,0.0001866,2]
[334754738,1723535515612,-1189.17,0.0001866,2]
[334754739,1723535515623,-633.87,0.0001866,2]
[334754740,1723535515633,-500.0,0.0001866,2]
[334754741,1723535515643,-507.8,0.0001866,2]
[334754742,1723535515653,-555.42,0.0001866,2]
[334754743,1723535515663,-869.38,0.0001866,2]
[334754744,1723535515672,-653.45,0.00018661,2]
[334754745,1723535515682,-663.86,0.00018661,2]
[334754746,1723535515691,-784.51,0.00018661,2]
[334754747,1723535515701,-2199.74,0.00018661,2]
[334754748,1723535515710,-1837.44,0.00018661,2]
[334754749,1723535515720,-909.74,0.00018661,2]
[334754750,1723535515729,-16518.43,0.00018661,2]
[334754751,1723535515739,-500.0,0.00018661,2]
[334754752,1723535515749,-932.05,0.00018661,2]
[334754753,1723535515759,-724.39,0.00018661,2]
[334754754,1723535515768,-587.6,0.00018661,2]
[334754755,1723535515778,-908.11,0.00018661,2]
[334754756,1723535515795,-799.22,0.00018661,2]
[334754757,1723535515805,-1082.91,0.00018661,2]
[334754758,1723535515815,-500.0,0.00018661,2]
[334754759,1723535515824,-500.0,0.00018661,2]
[334754760,1723535515834,-15076.44,0.00018661,2]
[334754761,1723535515844,-626.38272357,0.00018661,2]
[334754762,1723535515854,-4670.57,0.00018661,2]
[334754763,1723535515864,-667.34,0.00018661,2]
[334754764,1723535515874,-571.04,0.00018661,2]
[334754765,1723535515883,-1754.66,0.00018661,2]
[334754766,1723535515894,-534.32,0.00018661,2]
[334754767,1723535515903,-524.33,0.00018661,2]
[334754768,1723535515912,-682.76,0.00018661,2]
[334754769,1723535515922,-1600.18,0.00018661,2]
[334754770,1723535515932,-2553.18,0.00018661,2]
[334754771,1723535515942,-549.82,0.00018661,2]
[334754772,1723535515951,-705.6,0.00018661,2]
[334754773,1723535515960,-500.0,0.00018661,2]
[334754774,1723535515970,-500.0,0.00018661,2]
[334754775,1723535515979,-500.0,0.00018661,2]
[334754776,1723535515989,-500.0,0.00018661,2]
[334754777,1723535515999,-500.0,0.00018661,2]
[334754778,1723535516009,-171.52363713,0.00018661,2]
[334754779,1723535516018,-803.87,0.00018661,2]
[334754780,1723535516028,-555.199999,0.000187,2]
[334754781,1723535516042,-539.4150111,0.00018718,2]
[334754782,1723535516051,-317.9314659,0.00018718,2]
[334754783,1723535516061,-150.0,0.00018723,2]
[334754784,1723535516071,-224.38282423,0.00018731,2]
[334754785,1723535516080,-500.0,0.00018731,2]
[334754786,1723535516089,-1863.44,0.00018731,2]
[334754787,1723535516098,-500.0,0.00018731,2]
[334754788,1723535516107,-1155.62,0.00018731,2]
[334754789,1723535516117,-714.2,0.00018731,2]
[334754790,1723535516126,-1241.0,0.00018731,2]
[334754791,1723535516136,-755.25,0.00018731,2]
[334754792,1723535516146,-791.16,0.00018731,2]
[334754793,1723535516155,-946.68,0.00018731,2]
[334754794,1723535516166,-1359.34,0.00018731,2]
[334754795,1723535516175,-1743.71,0.00018731,2]
[334754796,1723535516185,-1023.06,0.00018731,2]
[334754797,1723535516195,-778.62,0.00018731,2]
[334754798,1723535516204,-1760.09,0.00018731,2]
[334754799,1723535516214,-1230.55,0.00018731,2]
[334754800,1723535516223,-537.47,0.00018731,2]
[334754801,1723535516233,-1688.57,0.00018731,2]
[334754802,1723535516242,-1001.08,0.00018731,2]
[334754803,1723535516255,-6177.95,0.00018731,2]
[334754804,1723535516264,-500.0,0.00018731,2]
[334754805,1723535516274,-2922.39,0.00018731,2]
[334754806,1723535516286,-1300.36,0.00018731,2]
[334754807,1723535516296,-342.0734525,0.00018731,2]
[334754808,1723535516306,-500.0,0.00018731,2]
[334754809,1723535516315,-609.65,0.00018731,2]
[334754810,1723535516325,-523.35,0.00018731,2]
[334754811,1723535516334,-1411.68,0.00018731,2]
[334754812,1723535516343,-500.0,0.00018731,2]
[334754813,1723535516353,-500.0,0.00018731,2]
[334754814,1723535516363,-518.03,0.00018731,2]
[334754815,1723535516372,-1209.11,0.00018731,2]
[334754816,1723535516381,-1085.25,0.00018731,2]
[334754817,1723535516391,-991.7,0.00018731,2]
[334754818,1723535516400,-507.82,0.00018731,2]
[334754819,1723535516410,-451.05201391,0.00018731,2]
[334754820,1723535516420,-686.92,0.00018731,2]
[334754821,1723535516429,-2622.01,0.00018731,2]
[334754822,1723535516438,-551.73,0.00018731,2]
[334754823,1723535516452,-1670.97,0.00018731,2]
[334754824,1723535516463,-670.23,0.00018731,2]
[334754825,1723535516472,-3541.36,0.00018731,2]
[334754826,1723535516483,-500.0,0.00018731,2]
[334754827,1723535516493,-519.78100716,0.00018731,2]
[334754828,1723535516502,-1085.98,0.00018731,2]
[334754829,1723535516512,-2167.9,0.00018731,2]
[334754830,1723535516522,-500.0,0.00018731,2]
[334754831,1723535516533,-2066.64,0.00018731,2]
[334754832,1723535516544,-1180.27,0.00018731,2]
[334754833,1723535516558,-913.4,0.00018731,2]
[334754834,1723535516568,-500.0,0.00018731,2]
[334754835,1723535516578,-1756.06,0.00018731,2]
[334754836,1723535516590,-500.0,0.00018731,2]
[334754837,1723535516599,-610.16,0.00018731,2]
[334754838,1723535516610,-4710.01,0.00018731,2]
[334754839,1723535516621,-1586.08,0.00018731,2]
[334754840,1723535516631,-842.93,0.00018731,2]
[334754841,1723535516640,-500.84,0.00018731,2]
[334754842,1723535516649,-500.0,0.00018731,2]
[334754843,1723535516659,-934.19,0.00018731,2]
[334754844,1723535516672,-4812.55,0.00018731,2]
[334754845,1723535516681,-605.96,0.00018731,2]
[334754846,1723535516692,-755.9,0.00018731,2]
[334754847,1723535516703,-1219.63,0.00018731,2]
[334754848,1723535516713,-500.0,0.00018731,2]
[334754849,1723535516723,-889.59,0.00018731,2]
[334754850,1723535516732,-2146.37,0.00018731,2]
[334754851,1723535516742,-521.65,0.00018731,2]
[334754852,1723535516751,-2584.53,0.00018731,2]
[334754853,1723535516761,-500.0,0.00018731,2]
[334754854,1723535516771,-690.9,0.00018731,2]
[334754855,1723535516781,-645.82,0.00018731,2]
[334754856,1723535516790,-4824.32,0.00018731,2]
[334754857,1723535516800,-2092.45,0.00018731,2]
[334754858,1723535516809,-500.0,0.00018731,2]
[334754859,1723535516819,-1427.21,0.00018731,2]
[334754860,1723535516829,-2925.2,0.00018731,2]
[334754861,1723535516839,-3000.0,0.000188,2]
[334754862,1723535516850,-10577.0,0.000188,3]
[334754863,1723535516859,-150.0,0.00018827,2]
[334754864,1723535516868,-224.38282423,0.00018858,2]
[334754865,1723535516878,-1700.0,0.000189,6]
[334754866,1723535516887,-771.68,0.00018903,2]
[334754867,1723535516898,-1412.75,0.00018933,2]
[334754868,1723535516908,-1000.0,0.00018934,11]
[334754869,1723535516918,-508.59,0.00018934,2]
[334754870,1723535516928,-500.0,0.00018934,2]
[334754871,1723535516938,-500.0,0.00018934,2]
[334754872,1723535516949,-510.66932044,0.00018934,2]
[334754873,1723535516960,-6591.73,0.00018934,2]
[334754874,1723535516969,-500.0,0.00018934,2]
[334754875,1723535516979,-1037.55,0.00018934,2]
[334754876,1723535516990,-981.15,0.00018934,2]
[334754877,1723535517001,-553.64,0.00018934,2]
[334754878,1723535517010,-500.0,0.00018934,2]
[334754879,1723535517020,-347.28,0.00018934,2]
[334754880,1723535517031,-505.73,0.00018934,2]
[334754881,1723535517040,-888.8,0.00018934,2]
[334754882,1723535517049,-4003.23,0.00018934,2]
[334754883,1723535517059,-773.78,0.00018934,2]
[334754884,1723535517069,-560.08,0.00018934,2]
[334754885,1723535517079,-500.0,0.00018934,2]
[334754886,1723535517088,-1646.38,0.00018934,2]
[334754887,1723535517097,-1106.51,0.00018934,2]
[334754888,1723535517107,-1145.83,0.00018934,2]
[334754889,1723535517116,-1271.02,0.00018934,2]
[334754890,1723535517127,-756.19,0.00018934,2]
[334754891,1723535517139,-1189.17,0.00018934,2]
[334754892,1723535517148,-633.87,0.00018934,2]
[334754893,1723535517158,-500.0,0.00018934,2]
[334754894,1723535517167,-507.8,0.00018934,2]
[334754895,1723535517177,-555.42,0.00018934,2]
[334754896,1723535517186,-869.38,0.00018934,2]
[334754897,1723535517195,-653.45,0.00018935,2]
[334754898,1723535517204,-663.86,0.00018935,2]
[334754899,1723535517214,-784.51,0.00018935,2]
[334754900,1723535517224,-2199.74,0.00018935,2]
[334754901,1723535517234,-1837.44,0.00018935,2]
[334754902,1723535517245,-909.74,0.00018935,2]
[334754903,1723535517255,-16518.43,0.00018935,2]
[334754904,1723535517264,-500.0,0.00018935,2]
[334754905,1723535517273,-932.05,0.00018935,2]
[334754906,1723535517284,-724.39,0.00018935,2]
[334754907,1723535517294,-587.6,0.00018935,2]
[334754908,1723535517303,-908.11,0.00018935,2]
[334754909,1723535517312,-799.22,0.00018935,2]
[334754910,1723535517321,-1082.91,0.00018935,2]
[334754911,1723535517331,-283.49,0.00018935,2]
[334754912,1723535517340,-500.0,0.00018935,2]
[334754913,1723535517349,-15076.44,0.00018935,2]
[334754914,1723535517358,-4670.57,0.00018935,2]
[334754915,1723535517368,-667.34,0.00018935,2]
[334754916,1723535517377,-571.04,0.00018935,2]
[334754917,1723535517386,-1754.66,0.00018935,2]
[334754918,1723535517395,-534.32,0.00018935,2]
[334754919,1723535517404,-524.33,0.00018935,2]
[334754920,1723535517413,-682.76,0.00018935,2]
[334754921,1723535517422,-1600.18,0.00018935,2]
[334754922,1723535517431,-2553.18,0.00018935,2]
[334754923,1723535517441,-549.82,0.00018935,2]
[334754924,1723535517450,-705.6,0.00018935,2]
[334754925,1723535517459,-533.12516777,0.00018935,2]
[334754926,1723535517468,-500.0,0.00018935,2]
[334754927,1723535517477,-500.0,0.00018935,2]
[334754928,1723535517486,-439.7915893,0.00018935,2]
[334754929,1723535517495,-500.0,0.00018935,2]
[334754930,1723535517504,-803.87,0.00018935,2]
[334754931,1723535517514,-200.0,0.00018973,2]
[334754932,1723535517523,-224.38282423,0.00018986,2]
[334754933,1723535517532,-150.0,0.00018986,2]
[334754934,1723535517541,-150.0,0.00018986,2]
[334754935,1723535517556,-150.0,0.00018986,2]
[334754936,1723535517565,-771.9297384,0.00018987,2]
[334754937,1723535517574,-326.0839738,0.00018987,2]
[334754938,1723535517584,-13271.4699067,0.00018987,2]
[334754939,1723535517594,-1146.10110112,0.0001899,2]
[334754940,1723535517603,-4862.8610163,0.00018998,2]
[334754941,1723535517612,-3108.3,0.00018999,2]
[334754942,1723535517622,-3108.3,0.00018999,2]
[334754943,1723535517633,-3108.3,0.00018999,2]
[334754944,1723535517642,-3108.3,0.00018999,2]
[334754945,1723535517651,-3108.3,0.00018999,2]
[334754946,1723535517661,-3108.34948444,0.00018999,2]
[334754947,1723535517670,-3205.28,0.00018999,2]
[334754948,1723535517681,-3205.28,0.00018999,2]
[334754949,1723535517691,-3205.28,0.00018999,2]
[334754950,1723535517700,-3205.28,0.00018999,2]
[334754951,1723535517709,-3205.28,0.00018999,2]
[334754952,1723535517719,-3205.38496054,0.00018999,2]
[334754953,1723535517728,-500.0,0.00019,2]
[334754954,1723535517738,-466465.17011995,0.00019,2]
[334754955,1723535517747,-495.0,0.00019,2]
[334754956,1723535517757,-122092.76110228,0.00019,2]
[334754957,1723535517766,-155.0,0.00019,2]
[334754958,1723535517775,-155.0,0.00019,2]
[334754959,1723535517784,-186.4608952,0.00019,2]
[334754960,1723535517793,-2383.27856239,0.00019,2]
[334754961,1723535517803,-64393.18598985,0.00019,2]
[334754962,1723535517812,-2235.50157323,0.00019,2]
[334754963,1723535517821,-201.0,0.00019,2]
[334754964,1723535517830,-1000.360436,0.00019,2]
[334754965,1723535517840,-513.29574881,0.00019005,2]
[334754966,1723535517849,-1863.44,0.00019005,2]
[334754967,1723535517860,-500.0,0.00019005,2]
[334754968,1723535517870,-1155.62,0.00019005,2]
[334754969,1723535517880,-714.2,0.00019005,2]
[334754970,1723535517891,-1241.0,0.00019005,2]
[334754971,1723535517902,-755.25,0.00019005,2]
[334754972,1723535517913,-791.16,0.00019005,2]
[334754973,1723535517924,-946.68,0.00019005,2]
[334754974,1723535517933,-1359.34,0.00019005,2]
[334754975,1723535517943,-1743.71,0.00019005,2]
[334754976,1723535517952,-1023.06,0.00019005,2]
[334754977,1723535517963,-778.62,0.00019005,2]
[334754978,1723535517973,-1760.09,0.00019005,2]
[334754979,1723535517983,-1230.55,0.00019005,2]
[334754980,1723535517993,-537.47,0.00019005,2]
[334754981,1723535518003,-1688.57,0.00019005,2]
[334754982,1723535518013,-1001.08,0.00019005,2]
[334754983,1723535518024,-6177.95,0.00019005,2]
[334754984,1723535518035,-500.0,0.00019005,2]
[334754985,1723535518044,-2922.39,0.00019005,2]
[334754986,1723535518053,-1300.36,0.00019005,2]
[334754987,1723535518063,-521.94510815,0.00019005,2]
[334754988,1723535518072,-609.65,0.00019005,2]
[334754989,1723535518083,-523.35,0.00019005,2]
[334754990,1723535518093,-1411.68,0.00019005,2]
[334754991,1723535518103,-500.0,0.00019005,2]
[334754992,1723535518113,-500.0,0.00019005,2]
[334754993,1723535518122,-518.03,0.00019005,2]
[334754994,1723535518132,-1209.11,0.00019005,2]
[334754995,1723535518141,-1085.25,0.00019005,2]
[334754996,1723535518151,-991.7,0.00019005,2]
[334754997,1723535518161,-507.82,0.00019005,2]
[334754998,1723535518170,-686.92,0.00019005,2]
[334754999,1723535518180,-2622.01,0.00019005,2]
[334755000,1723535518190,-551.73,0.00019005,2]
[334755001,1723535518199,-1670.97,0.00019005,2]
[334755002,1723535518208,-670.23,0.00019005,2]
[334755003,1723535518218,-3541.36,0.00019005,2]
[334755004,1723535518227,-500.0,0.00019005,2]
[334755005,1723535518237,-1085.98,0.00019005,2]
[334755006,1723535518246,-2167.9,0.00019005,2]
[334755007,1723535518427,-500.0,0.00019005,2]
[334755008,1723535518438,-2066.64,0.00019005,2]
[334755009,1723535518447,-1180.27,0.00019005,2]
[334755010,1723535518457,-913.4,0.00019005,2]
[334755011,1723535518467,-500.0,0.00019005,2]
[334755012,1723535518477,-1756.06,0.00019005,2]
[334755013,1723535518487,-500.0,0.00019005,2]
[334755014,1723535518496,-610.16,0.00019005,2]
[334755015,1723535518506,-4710.01,0.00019005,2]
[334755016,1723535518516,-1586.08,0.00019005,2]
[334755017,1723535518528,-842.93,0.00019005,2]
[334755018,1723535518539,-500.84,0.00019005,2]
[334755019,1723535518554,-500.0,0.00019005,2]
[334755020,1723535518564,-934.19,0.00019005,2]
[334755021,1723535518577,-4812.55,0.00019005,2]
[334755022,1723535518587,-605.96,0.00019005,2]
[334755023,1723535518597,-755.9,0.00019005,2]
[334755024,1723535518606,-1219.63,0.00019005,2]
[334755025,1723535518616,-583.3630528,0.00019005,2]
[334755026,1723535518629,-889.59,0.00019005,2]
[334755027,1723535518639,-2146.37,0.00019005,2]
[334755028,1723535518649,-521.65,0.00019005,2]
[334755029,1723535518660,-2584.53,0.00019005,2]
[334755030,1723535518670,-321.9308016,0.00019005,2]
[334755031,1723535518680,-690.9,0.00019005,2]
[334755032,1723535518690,-645.82,0.00019005,2]
[334755033,1723535518700,-4824.32,0.00019005,2]
[334755034,1723535518710,-2092.45,0.00019005,2]
[334755035,1723535518720,-500.0,0.00019005,2]
[334755036,1723535518730,-1427.21,0.00019005,2]
[334755037,1723535518740,-2925.2,0.00019005,2]
[334755038,1723535518751,-338.18913153,0.00019015,2]
[334755039,1723535518761,-150.0,0.00019065,2]
[334755040,1723535518770,-152.0,0.00019088,4]
[334755041,1723535518780,-150.0,0.00019089,2]
[334755042,1723535518796,-150.0,0.00019089,2]
[334755043,1723535518806,-11499.0,0.000191,5]
[334755044,1723535518816,-152.8,0.00019102,2]
[334755045,1723535518825,-224.38282423,0.00019113,2]
[334755046,1723535518835,-11728.91,0.00019151,2]
[334755047,1723535518845,-546.6589331,0.00019165,2]
[334755048,1723535518856,-322.2010371,0.00019165,2]
[334755049,1723535518865,-771.68,0.00019177,2]
[334755050,1723535518875,-244.14635193,0.00019178,7]
[334755051,1723535518885,-3214.8,0.00019178,2]
[334755052,1723535518894,-1266.50722099,0.00019178,2]
[334755053,1723535518903,-231.80353608,0.00019178,2]
[334755054,1723535518912,-500.0,0.00019178,2]
[334755055,1723535518922,-500.0,0.00019178,2]
[334755056,1723535518932,-500.0,0.00019178,2]
[334755057,1723535518942,-500.0,0.00019178,2]
[334755058,1723535518952,-500.0,0.00019178,2]
[334755059,1723535518962,-164.2009438,0.00019178,2]
[334755060,1723535518972,-500.0,0.00019178,2]
[334755061,1723535518982,-528.20253422,0.00019178,2]
[334755062,1723535518992,-500.0,0.00019178,2]
[334755063,1723535519003,-500.0,0.00019178,2]
[334755064,1723535519013,-204.28808783,0.00019178,2]
[334755065,1723535519022,-500.0,0.00019178,2]
[334755066,1723535519035,-500.0,0.00019178,2]
[334755067,1723535519044,-300.0,0.00019178,2]
[334755068,1723535519054,-500.0,0.00019178,2]
[334755069,1723535519063,-506.53704845,0.00019178,2]
[334755070,1723535519073,-504.29322589,0.00019178,2]
[334755071,1723535519083,-628.3230092,0.00019178,2]
[334755072,1723535519093,-633.88497611,0.00019178,2]
[334755073,1723535519102,-500.0,0.00019178,2]
[334755074,1723535519112,-500.0,0.00019178,2]
[334755075,1723535519122,-500.0,0.00019178,2]
[334755076,1723535519131,-500.0,0.00019178,2]
[334755077,1723535519141,-500.0,0.00019178,2]
[334755078,1723535519150,-500.0,0.00019178,2]
[334755079,1723535519160,-500.0,0.00019178,2]
[334755080,1723535519170,-500.0,0.00019178,2]
[334755081,1723535519179,-521.44303096,0.00019178,2]
[334755082,1723535519190,-500.0,0.00019178,2]
[334755083,1723535519199,-500.0,0.00019178,2]
[334755084,1723535519208,-500.0,0.00019178,2]
[334755085,1723535519218,-500.0,0.00019178,2]
[334755086,1723535519227,-500.0,0.00019178,2]
[334755087,1723535519236,-500.0,0.00019178,2]
[334755088,1723535519246,-649.96926077,0.00019178,2]
[334755089,1723535519255,-500.0,0.00019178,2]
[334755090,1723535519264,-500.0,0.00019178,2]
[334755091,1723535519274,-500.0,0.00019178,2]
[334755092,1723535519286,-500.0,0.00019178,2]
[334755093,1723535519295,-500.0,0.00019178,2]
[334755094,1723535519304,-702.35,0.00019178,2]
[334755095,1723535519315,-500.0,0.00019178,2]
[334755096,1723535519324,-500.0,0.00019178,2]
[334755097,1723535519333,-513.22554653,0.00019178,2]
[334755098,1723535519343,-500.0,0.00019178,2]
[334755099,1723535519352,-500.0,0.00019178,2]
[334755100,1723535519362,-500.0,0.00019178,2]
[334755101,1723535519371,-500.0,0.00019178,2]
[334755102,1723535519381,-500.0,0.00019178,2]
[334755103,1723535519390,-571.12,0.00019178,2]
[334755104,1723535519399,-500.0,0.00019178,2]
[334755105,1723535519408,-507.64539532,0.00019178,2]
[334755106,1723535519418,-500.0,0.00019178,2]
[334755107,1723535519427,-500.0,0.00019178,2]
[334755108,1723535519437,-506.43459919,0.00019178,2]
[334755109,1723535519446,-500.0,0.00019178,2]
[334755110,1723535519455,-500.0,0.00019178,2]
[334755111,1723535519465,-508.04591924,0.00019178,2]
[334755112,1723535519474,-500.0,0.00019178,2]
[334755113,1723535519483,-500.0,0.00019178,2]
[334755114,1723535519492,-500.0,0.00019178,2]
[334755115,1723535519502,-514.58039253,0.00019178,2]
[334755116,1723535519511,-500.0,0.00019178,2]
[334755117,1723535519521,-513.23294414,0.00019178,2]